[Event "*** Titled Tuesday Blitz"]
[Site "Chess.com"]
[Date "2020.04.14"]
[Round "1"]
[White "CarlosAlbornoz"]
[Black "Budisavljevic"]
[Result "1-0"]
[WhiteElo "2699"]
[BlackElo "2340"]
[TimeControl "180+1"]
[EndTime "10:05:40 PDT"]
[Termination "CarlosAlbornoz won by resignation"]

1. e4 {[%clk 0:03:00.9]} 1... c5 {[%clk 0:02:59.2]} 2. Nf3 {[%clk 0:03:01]} 2...
e6 {[%clk 0:02:59.1]} 3. d4 {[%clk 0:03:01.1]} 3... cxd4 {[%clk 0:03:00]} 4.
Nxd4 {[%clk 0:03:01]} 4... a6 {[%clk 0:03:00]} 5. c4 {[%clk 0:03:00.8]} 5... Nf6
{[%clk 0:02:59.3]} 6. Nc3 {[%clk 0:03:00.9]} 6... Qc7 {[%clk 0:02:59.4]} 7. a3
{[%clk 0:03:00]} 7... b6 {[%clk 0:02:59.2]} 8. Be2 {[%clk 0:02:59.6]} 8... Bb7
{[%clk 0:02:59.3]} 9. f3 {[%clk 0:02:59.9]} 9... Be7 {[%clk 0:02:55.8]} 10. O-O
{[%clk 0:02:58.2]} 10... O-O {[%clk 0:02:52.6]} 11. Be3 {[%clk 0:02:57.9]} 11...
d6 {[%clk 0:02:51.7]} 12. a4 {[%clk 0:02:55.8]} 12... Nbd7 {[%clk 0:02:50.9]}
13. a5 {[%clk 0:02:55.1]} 13... bxa5 {[%clk 0:02:49.3]} 14. Nb3 {[%clk
0:02:55.1]} 14... Rab8 {[%clk 0:02:36.1]} 15. Nxa5 {[%clk 0:02:54.8]} 15... Ba8
{[%clk 0:02:35]} 16. Qd2 {[%clk 0:02:48.9]} 16... Rfc8 {[%clk 0:02:31.2]} 17.
Rfb1 {[%clk 0:02:39.3]} 17... Ne5 {[%clk 0:02:07.2]} 18. b4 {[%clk 0:02:36.7]}
18... d5 {[%clk 0:01:59.6]} 19. exd5 {[%clk 0:02:13.2]} 19... Bxb4 {[%clk
0:01:53.1]} 20. Rxb4 {[%clk 0:02:07.2]} 20... Rxb4 {[%clk 0:01:54]} 21. Nb5
{[%clk 0:02:02.8]} 21... axb5 {[%clk 0:01:07]} 22. Qxb4 {[%clk 0:02:01.8]} 22...
Nxc4 {[%clk 0:01:03.4]} 23. Nxc4 {[%clk 0:01:52.7]} 23... Nxd5 {[%clk
0:00:59.3]} 24. Qxb5 {[%clk 0:01:41.9]} 24... Bc6 {[%clk 0:00:26.3]} 25. Qc5
{[%clk 0:01:36.1]} 25... Nc3 {[%clk 0:00:25.6]} 26. Bf1 {[%clk 0:01:31.4]} 26...
h6 {[%clk 0:00:23.5]} 27. Nb6 {[%clk 0:01:26.5]} 1-0

[Event "*** Titled Tuesday Blitz"]
[Site "Chess.com"]
[Date "2020.04.14"]
[Round "1"]
[White "Disturbed01"]
[Black "floplover"]
[Result "1-0"]
[WhiteElo "2652"]
[BlackElo "2302"]
[TimeControl "180+1"]
[EndTime "10:05:40 PDT"]
[Termination "Disturbed01 won by resignation"]

1. d4 {[%clk 0:03:00.9]} 1... Nf6 {[%clk 0:02:59.5]} 2. c4 {[%clk 0:03:01.5]}
2... e6 {[%clk 0:03:00.4]} 3. Nc3 {[%clk 0:03:02.1]} 3... Bb4 {[%clk 0:02:59.2]}
4. Qc2 {[%clk 0:03:02.6]} 4... O-O {[%clk 0:02:58]} 5. Nf3 {[%clk 0:03:02.8]}
5... b6 {[%clk 0:02:55.7]} 6. e4 {[%clk 0:03:01.6]} 6... Bb7 {[%clk 0:02:36.8]}
7. Bd3 {[%clk 0:03:01.1]} 7... Bxc3+ {[%clk 0:02:33.6]} 8. bxc3 {[%clk 0:03:02]}
8... d5 {[%clk 0:01:48.7]} 9. cxd5 {[%clk 0:03:02.9]} 9... exd5 {[%clk 0:01:48]}
10. e5 {[%clk 0:03:02]} 10... Ne4 {[%clk 0:01:47.9]} 11. O-O {[%clk 0:03:00.7]}
11... f6 {[%clk 0:01:37.3]} 12. exf6 {[%clk 0:02:51.8]} 12... Qxf6 {[%clk
0:01:34.3]} 13. Ne5 {[%clk 0:02:38.5]} 13... Qd6 {[%clk 0:01:19.8]} 14. f3
{[%clk 0:02:33.3]} 14... Nf6 {[%clk 0:01:19.2]} 15. Bf4 {[%clk 0:02:29.2]} 15...
Qd8 {[%clk 0:01:09.9]} 16. Rae1 {[%clk 0:02:27.7]} 16... Nc6 {[%clk 0:01:00.6]}
17. Bg5 {[%clk 0:02:27.4]} 17... h6 {[%clk 0:00:44.4]} 18. Bh7+ {[%clk
0:02:25.7]} 18... Kh8 {[%clk 0:00:38.7]} 19. Ng6+ {[%clk 0:02:25.6]} 19... Kxh7
{[%clk 0:00:37.5]} 20. Nxf8+ {[%clk 0:02:25.8]} 20... Kg8 {[%clk 0:00:37.4]} 21.
Ne6 {[%clk 0:02:25.8]} 21... Qe7 {[%clk 0:00:20.6]} 22. Bh4 {[%clk 0:02:24.5]}
22... Qf7 {[%clk 0:00:19.2]} 23. Bxf6 {[%clk 0:02:22.2]} 23... Qxf6 {[%clk
0:00:18.7]} 24. Nxc7 {[%clk 0:02:17.6]} 24... Rd8 {[%clk 0:00:18.2]} 25. Qe2
{[%clk 0:02:14.5]} 25... Na5 {[%clk 0:00:16.7]} 26. Qe7 {[%clk 0:01:55.9]} 26...
Qxe7 {[%clk 0:00:15.3]} 27. Rxe7 {[%clk 0:01:56.8]} 27... Rc8 {[%clk 0:00:15.4]}
28. Ne6 {[%clk 0:01:55]} 28... Rxc3 {[%clk 0:00:07]} 29. Rxg7+ {[%clk
0:01:54.9]} 29... Kh8 {[%clk 0:00:07.4]} 30. Rf7 {[%clk 0:01:50.9]} 30... Rc6
{[%clk 0:00:05.9]} 31. Re1 {[%clk 0:01:50.3]} 31... Rd6 {[%clk 0:00:03.4]} 32.
Nf4 {[%clk 0:01:49.2]} 32... Rd8 {[%clk 0:00:03.4]} 33. Ree7 {[%clk 0:01:48.9]}
1-0

[Event "*** Titled Tuesday Blitz"]
[Site "Chess.com"]
[Date "2020.04.14"]
[Round "1"]
[White "francyIM"]
[Black "Kaua18"]
[Result "1-0"]
[WhiteElo "2622"]
[BlackElo "2271"]
[TimeControl "180+1"]
[EndTime "10:05:40 PDT"]
[Termination "francyIM won by resignation"]

1. d4 {[%clk 0:03:00.9]} 1... Nf6 {[%clk 0:02:55]} 2. c4 {[%clk 0:03:00.8]} 2...
e6 {[%clk 0:02:52.5]} 3. Nc3 {[%clk 0:03:00.1]} 3... Bb4 {[%clk 0:02:51.8]} 4.
Qc2 {[%clk 0:02:58.5]} 4... O-O {[%clk 0:02:51]} 5. e4 {[%clk 0:02:57.1]} 5...
c5 {[%clk 0:02:47.2]} 6. e5 {[%clk 0:02:49.1]} 6... cxd4 {[%clk 0:02:40.9]} 7.
a3 {[%clk 0:02:47]} 7... dxc3 {[%clk 0:02:26.4]} 8. axb4 {[%clk 0:02:41.4]} 8...
Ne8 {[%clk 0:02:15.3]} 9. bxc3 {[%clk 0:02:36.8]} 9... d6 {[%clk 0:02:13.5]} 10.
exd6 {[%clk 0:02:35.5]} 10... Qxd6 {[%clk 0:02:13.2]} 11. Nf3 {[%clk 0:02:30.1]}
11... Nc6 {[%clk 0:02:13.3]} 12. Bd3 {[%clk 0:02:26.4]} 12... Nf6 {[%clk
0:02:12.3]} 13. O-O {[%clk 0:02:23.3]} 13... h6 {[%clk 0:02:09]} 14. Re1 {[%clk
0:02:21.7]} 14... b6 {[%clk 0:02:07.3]} 15. b5 {[%clk 0:02:19.7]} 15... Na5
{[%clk 0:02:04.7]} 16. Ba3 {[%clk 0:02:18.7]} 16... Qc7 {[%clk 0:02:03.6]} 17.
Bxf8 {[%clk 0:02:18.1]} 17... Kxf8 {[%clk 0:02:04.5]} 18. Qa4 {[%clk 0:02:07.2]}
18... Bb7 {[%clk 0:02:03.8]} 19. Ne5 {[%clk 0:02:03.6]} 19... Rc8 {[%clk
0:02:03.7]} 20. Qb4+ {[%clk 0:01:59.7]} 20... Kg8 {[%clk 0:02:01.1]} 21. c5
{[%clk 0:01:57.1]} 21... Qxc5 {[%clk 0:01:55.5]} 22. Qxc5 {[%clk 0:01:51.7]}
22... Rxc5 {[%clk 0:01:56.4]} 23. c4 {[%clk 0:01:47.6]} 23... Rc7 {[%clk
0:01:47]} 24. Rad1 {[%clk 0:01:44.1]} 24... Nd7 {[%clk 0:01:41.7]} 25. Nxd7
{[%clk 0:01:43.4]} 25... Rxd7 {[%clk 0:01:42.6]} 26. Bh7+ {[%clk 0:01:43.4]}
26... Kxh7 {[%clk 0:01:42]} 27. Rxd7 {[%clk 0:01:43.8]} 27... Kg6 {[%clk
0:01:42.5]} 28. Ra1 {[%clk 0:01:39]} 28... Be4 {[%clk 0:01:41.5]} 29. Rc7 {[%clk
0:01:32.1]} 29... Bd3 {[%clk 0:01:39.9]} 30. Ra3 {[%clk 0:01:26.7]} 30... Be2
{[%clk 0:01:23.6]} 31. c5 {[%clk 0:01:25.6]} 31... Bxb5 {[%clk 0:01:22.3]} 32.
Rxa7 {[%clk 0:01:25.5]} 32... Nc4 {[%clk 0:00:58]} 33. Rb3 {[%clk 0:01:24.5]}
33... Bc6 {[%clk 0:00:57]} 34. cxb6 {[%clk 0:01:23.1]} 34... Nd6 {[%clk
0:00:56.7]} 35. b7 {[%clk 0:01:20.5]} 35... Bxb7 {[%clk 0:00:53.9]} 36. Raxb7
{[%clk 0:01:20.9]} 36... Nf5 {[%clk 0:00:53]} 37. R3b4 {[%clk 0:01:19]} 37... h5
{[%clk 0:00:52.6]} 38. h3 {[%clk 0:01:18.2]} 38... h4 {[%clk 0:00:52.6]} 39.
Rg4+ {[%clk 0:01:17.5]} 39... Kf6 {[%clk 0:00:52.1]} 40. Rf4 {[%clk 0:01:18]}
40... Kg5 {[%clk 0:00:51.8]} 41. Rxf5+ {[%clk 0:01:17.7]} 1-0

[Event "*** Titled Tuesday Blitz"]
[Site "Chess.com"]
[Date "2020.04.14"]
[Round "1"]
[White "hermionegrangermagic"]
[Black "wonderfultime"]
[Result "0-1"]
[WhiteElo "2497"]
[BlackElo "2943"]
[TimeControl "180+1"]
[EndTime "10:05:44 PDT"]
[Termination "wonderfultime won by resignation"]

1. e4 {[%clk 0:03:00.9]} 1... c5 {[%clk 0:02:54.6]} 2. Nf3 {[%clk 0:02:46.6]}
2... Nf6 {[%clk 0:02:54]} 3. e5 {[%clk 0:02:46]} 3... Nd5 {[%clk 0:02:49.4]} 4.
Nc3 {[%clk 0:02:42.3]} 4... e6 {[%clk 0:02:49.6]} 5. Nxd5 {[%clk 0:02:41.8]}
5... exd5 {[%clk 0:02:50.5]} 6. d4 {[%clk 0:02:42.1]} 6... Nc6 {[%clk
0:02:50.2]} 7. c3 {[%clk 0:02:41.7]} 7... cxd4 {[%clk 0:02:46.2]} 8. cxd4 {[%clk
0:02:41.1]} 8... d6 {[%clk 0:02:46.6]} 9. exd6 {[%clk 0:02:18.8]} 9... Bxd6
{[%clk 0:02:47.5]} 10. Bd3 {[%clk 0:02:17.1]} 10... O-O {[%clk 0:02:46.6]} 11.
O-O {[%clk 0:02:17.1]} 11... Bg4 {[%clk 0:02:44.5]} 12. Be3 {[%clk 0:02:15.4]}
12... Qf6 {[%clk 0:02:41.3]} 13. h3 {[%clk 0:02:14.8]} 13... Bh5 {[%clk
0:01:57.6]} 14. g4 {[%clk 0:02:11]} 14... Bg6 {[%clk 0:01:58]} 15. Bg5 {[%clk
0:02:03.1]} 15... Qe6 {[%clk 0:01:57.9]} 16. Re1 {[%clk 0:01:54.3]} 16... Qd7
{[%clk 0:01:58.4]} 17. Ne5 {[%clk 0:01:43.5]} 17... Bxe5 {[%clk 0:01:55.7]} 18.
dxe5 {[%clk 0:01:44.4]} 18... Rfe8 {[%clk 0:01:48]} 19. Bf4 {[%clk 0:01:18.2]}
19... d4 {[%clk 0:01:43.7]} 20. Rc1 {[%clk 0:00:57.8]} 20... Rad8 {[%clk
0:01:38.3]} 21. Bb5 {[%clk 0:00:47]} 21... Qd5 {[%clk 0:01:32.6]} 22. Bc4 {[%clk
0:00:32.4]} 22... Qa5 {[%clk 0:01:27.2]} 23. Qb3 {[%clk 0:00:31.8]} 23... d3
{[%clk 0:01:19.7]} 24. Red1 {[%clk 0:00:29.1]} 24... Nd4 {[%clk 0:01:16.5]} 25.
Bd2 {[%clk 0:00:15.3]} 25... Nxb3 {[%clk 0:01:16.1]} 26. Bxa5 {[%clk 0:00:13.9]}
26... Nxa5 {[%clk 0:01:17]} 0-1

[Event "*** Titled Tuesday Blitz"]
[Site "Chess.com"]
[Date "2020.04.14"]
[Round "1"]
[White "Igrok3069"]
[Black "MartinCerveny"]
[Result "1-0"]
[WhiteElo "2424"]
[BlackElo "2621"]
[TimeControl "180+1"]
[EndTime "10:05:45 PDT"]
[Termination "Igrok3069 won by resignation"]

1. d4 {[%clk 0:02:58]} 1... d5 {[%clk 0:02:59.1]} 2. c4 {[%clk 0:02:57.4]} 2...
c6 {[%clk 0:02:59.2]} 3. cxd5 {[%clk 0:02:55.4]} 3... cxd5 {[%clk 0:02:58.4]} 4.
Bg5 {[%clk 0:02:56.1]} 4... Nc6 {[%clk 0:02:57.6]} 5. Nc3 {[%clk 0:02:54.6]}
5... h6 {[%clk 0:02:44.3]} 6. Bh4 {[%clk 0:02:53.8]} 6... Qa5 {[%clk 0:02:41.8]}
7. e3 {[%clk 0:02:51.3]} 7... e6 {[%clk 0:02:36.4]} 8. Bd3 {[%clk 0:02:49.5]}
8... Bd7 {[%clk 0:02:23.1]} 9. Nf3 {[%clk 0:02:45.9]} 9... Nf6 {[%clk
0:02:18.4]} 10. O-O {[%clk 0:02:38.6]} 10... Be7 {[%clk 0:02:13.6]} 11. Ne5
{[%clk 0:02:35]} 11... Nxe5 {[%clk 0:02:05.5]} 12. dxe5 {[%clk 0:02:34.1]} 12...
Ng8 {[%clk 0:02:04.2]} 13. Bg3 {[%clk 0:02:21.4]} 13... h5 {[%clk 0:01:52.8]}
14. e4 {[%clk 0:02:16.1]} 14... d4 {[%clk 0:01:39.6]} 15. Ne2 {[%clk 0:02:15.7]}
15... Qb6 {[%clk 0:01:36.1]} 16. f4 {[%clk 0:02:12.9]} 16... Rd8 {[%clk
0:01:17.9]} 17. f5 {[%clk 0:02:10.9]} 17... Bg5 {[%clk 0:01:12.7]} 18. Bf4
{[%clk 0:02:10.5]} 18... Bxf4 {[%clk 0:01:11.8]} 19. Nxf4 {[%clk 0:02:10.1]}
19... h4 {[%clk 0:01:08.8]} 20. Qg4 {[%clk 0:02:07.6]} 20... Rh7 {[%clk
0:01:01]} 21. Rf2 {[%clk 0:02:03.1]} 21... Nh6 {[%clk 0:00:52.1]} 22. Qg5 {[%clk
0:02:02.3]} 22... Rc8 {[%clk 0:00:28.6]} 23. Raf1 {[%clk 0:01:58.2]} 23... Qd8
{[%clk 0:00:28.4]} 24. Qh5 {[%clk 0:01:55.7]} 24... exf5 {[%clk 0:00:26.4]} 25.
exf5 {[%clk 0:01:50.1]} 25... Qe7 {[%clk 0:00:25.8]} 26. f6 {[%clk 0:01:48.5]}
26... g6 {[%clk 0:00:22]} 27. fxe7 {[%clk 0:01:42.9]} 27... gxh5 {[%clk
0:00:21.7]} 28. Bxh7 {[%clk 0:01:42.6]} 28... Ng4 {[%clk 0:00:22.6]} 29. Rd2
{[%clk 0:01:17]} 1-0

[Event "*** Titled Tuesday Blitz"]
[Site "Chess.com"]
[Date "2020.04.14"]
[Round "1"]
[White "mitrabhaa"]
[Black "GodDMuhammad"]
[Result "1-0"]
[WhiteElo "2609"]
[BlackElo "2248"]
[TimeControl "180+1"]
[EndTime "10:05:45 PDT"]
[Termination "mitrabhaa won by checkmate"]

1. Nf3 {[%clk 0:02:55.8]} 1... Nf6 {[%clk 0:02:59.7]} 2. g3 {[%clk 0:02:56.3]}
2... d5 {[%clk 0:02:51.2]} 3. c4 {[%clk 0:02:56.1]} 3... e6 {[%clk 0:02:51.4]}
4. d4 {[%clk 0:02:56]} 4... Be7 {[%clk 0:02:50.1]} 5. Bg2 {[%clk 0:02:56.5]}
5... O-O {[%clk 0:02:50.1]} 6. O-O {[%clk 0:02:57.1]} 6... b6 {[%clk 0:02:50.3]}
7. Nc3 {[%clk 0:02:56.2]} 7... Bb7 {[%clk 0:02:50.7]} 8. Ne5 {[%clk 0:02:55.5]}
8... c5 {[%clk 0:02:42.8]} 9. dxc5 {[%clk 0:02:52.1]} 9... bxc5 {[%clk
0:02:37.8]} 10. cxd5 {[%clk 0:02:51]} 10... exd5 {[%clk 0:02:37.9]} 11. Bg5
{[%clk 0:02:50.3]} 11... Qd6 {[%clk 0:02:27]} 12. Nd3 {[%clk 0:02:43.1]} 12...
Rd8 {[%clk 0:02:14.1]} 13. Nf4 {[%clk 0:02:39.1]} 13... Nbd7 {[%clk 0:01:21.8]}
14. Nfxd5 {[%clk 0:02:19]} 14... Nxd5 {[%clk 0:01:14.6]} 15. Bxe7 {[%clk
0:02:13.9]} 15... Qxe7 {[%clk 0:01:14.4]} 16. Nxd5 {[%clk 0:02:11.9]} 16... Bxd5
{[%clk 0:01:13.1]} 17. Qxd5 {[%clk 0:02:09.8]} 17... Rab8 {[%clk 0:01:14]} 18.
b3 {[%clk 0:02:07.7]} 18... Nb6 {[%clk 0:01:03.2]} 19. Qe4 {[%clk 0:02:05.3]}
19... Qxe4 {[%clk 0:00:58.8]} 20. Bxe4 {[%clk 0:02:06.2]} 20... c4 {[%clk
0:00:59.7]} 21. Rfd1 {[%clk 0:02:02.4]} 21... c3 {[%clk 0:00:52.7]} 22. Rxd8+
{[%clk 0:01:57]} 22... Rxd8 {[%clk 0:00:52.4]} 23. Rc1 {[%clk 0:01:57.5]} 23...
Rc8 {[%clk 0:00:50.6]} 24. Kf1 {[%clk 0:01:57.9]} 24... g6 {[%clk 0:00:50]} 25.
Ke1 {[%clk 0:01:57.9]} 25... f5 {[%clk 0:00:49]} 26. Bf3 {[%clk 0:01:55.1]}
26... Kf7 {[%clk 0:00:48.6]} 27. Kd1 {[%clk 0:01:53.2]} 27... Ke6 {[%clk
0:00:47.3]} 28. Kc2 {[%clk 0:01:53.7]} 28... a5 {[%clk 0:00:42.1]} 29. Rd1
{[%clk 0:01:49.7]} 29... a4 {[%clk 0:00:40.9]} 30. Rd3 {[%clk 0:01:44.1]} 30...
axb3+ {[%clk 0:00:28]} 31. axb3 {[%clk 0:01:45]} 31... Ke5 {[%clk 0:00:17.6]}
32. Rxc3 {[%clk 0:01:44.6]} 32... Rb8 {[%clk 0:00:17.7]} 33. Rc7 {[%clk
0:01:42.7]} 33... h6 {[%clk 0:00:15.5]} 34. Rc6 {[%clk 0:01:42.7]} 34... g5
{[%clk 0:00:14.1]} 35. Bg2 {[%clk 0:01:43]} 35... h5 {[%clk 0:00:13.2]} 36. e3
{[%clk 0:01:43]} 36... h4 {[%clk 0:00:12.6]} 37. f4+ {[%clk 0:01:42.6]} 37...
gxf4 {[%clk 0:00:11.1]} 38. gxf4# {[%clk 0:01:43.5]} 1-0

[Event "*** Titled Tuesday Blitz"]
[Site "Chess.com"]
[Date "2020.04.14"]
[Round "1"]
[White "Danfii"]
[Black "moro182"]
[Result "0-1"]
[WhiteElo "2334"]
[BlackElo "2680"]
[TimeControl "180+1"]
[EndTime "10:05:47 PDT"]
[Termination "moro182 won by resignation"]

1. e4 {[%clk 0:03:00.9]} 1... e5 {[%clk 0:02:59.7]} 2. Nf3 {[%clk 0:03:01.1]}
2... Nc6 {[%clk 0:03:00.1]} 3. Bc4 {[%clk 0:03:01.6]} 3... Bc5 {[%clk
0:02:59.8]} 4. O-O {[%clk 0:03:01.4]} 4... Nf6 {[%clk 0:03:00]} 5. d3 {[%clk
0:03:01.6]} 5... d6 {[%clk 0:02:59.9]} 6. c3 {[%clk 0:03:01.6]} 6... a6 {[%clk
0:03:00]} 7. Nbd2 {[%clk 0:03:01.7]} 7... Ba7 {[%clk 0:02:59.8]} 8. Bb3 {[%clk
0:03:01.7]} 8... h6 {[%clk 0:02:59.8]} 9. Re1 {[%clk 0:03:01.3]} 9... g5 {[%clk
0:03:00]} 10. Nf1 {[%clk 0:03:01.4]} 10... g4 {[%clk 0:02:59.2]} 11. N3d2 {[%clk
0:03:02]} 11... h5 {[%clk 0:02:59.5]} 12. Nc4 {[%clk 0:03:02.4]} 12... Rg8
{[%clk 0:02:58]} 13. Be3 {[%clk 0:03:02.3]} 13... h4 {[%clk 0:02:56.5]} 14. Bxa7
{[%clk 0:03:00.5]} 14... Nxa7 {[%clk 0:02:56.4]} 15. d4 {[%clk 0:02:58.5]} 15...
Qe7 {[%clk 0:02:53.6]} 16. dxe5 {[%clk 0:02:53.2]} 16... dxe5 {[%clk 0:02:51.4]}
17. Nce3 {[%clk 0:02:49.2]} 17... Bd7 {[%clk 0:02:13.6]} 18. Nd5 {[%clk
0:02:13.4]} 18... Nxd5 {[%clk 0:02:10.6]} 19. exd5 {[%clk 0:02:14]} 19... O-O-O
{[%clk 0:02:06.1]} 20. Qe2 {[%clk 0:02:05.8]} 20... Rge8 {[%clk 0:02:06]} 21. c4
{[%clk 0:01:52.7]} 21... f5 {[%clk 0:02:00.9]} 22. Rac1 {[%clk 0:01:36]} 22...
Kb8 {[%clk 0:01:58.3]} 23. Ne3 {[%clk 0:01:21.8]} 23... g3 {[%clk 0:01:24.4]}
24. fxg3 {[%clk 0:01:16.6]} 24... hxg3 {[%clk 0:01:25.3]} 25. h3 {[%clk
0:01:17.1]} 25... f4 {[%clk 0:01:25.5]} 26. Nf1 {[%clk 0:01:03.5]} 26... Qc5+
{[%clk 0:01:24.2]} 27. Kh1 {[%clk 0:01:03.3]} 27... Rh8 {[%clk 0:01:23]} 28.
Qxe5 {[%clk 0:00:44.1]} 28... Bxh3 {[%clk 0:01:15.2]} 29. gxh3 {[%clk
0:00:43.6]} 29... Qf2 {[%clk 0:01:10.7]} 0-1

[Event "*** Titled Tuesday Blitz"]
[Site "Chess.com"]
[Date "2020.04.14"]
[Round "1"]
[White "VishnuPrasanna"]
[Black "Andrii_Prydun"]
[Result "1-0"]
[WhiteElo "2681"]
[BlackElo "2337"]
[TimeControl "180+1"]
[EndTime "10:05:49 PDT"]
[Termination "VishnuPrasanna won by checkmate"]

1. d4 {[%clk 0:03:00.9]} 1... d5 {[%clk 0:02:59.7]} 2. c4 {[%clk 0:03:00.9]}
2... c6 {[%clk 0:02:59.9]} 3. Nf3 {[%clk 0:03:00.9]} 3... Nf6 {[%clk 0:02:59.7]}
4. Nc3 {[%clk 0:03:01.4]} 4... e6 {[%clk 0:03:00.1]} 5. Bg5 {[%clk 0:03:00.1]}
5... Nbd7 {[%clk 0:02:57.1]} 6. cxd5 {[%clk 0:02:59.8]} 6... exd5 {[%clk
0:02:56.2]} 7. e3 {[%clk 0:03:00.4]} 7... Be7 {[%clk 0:02:50.8]} 8. Qc2 {[%clk
0:03:00.9]} 8... Nf8 {[%clk 0:02:46.9]} 9. Bd3 {[%clk 0:02:59.5]} 9... Ng6
{[%clk 0:02:40]} 10. O-O {[%clk 0:02:55.4]} 10... O-O {[%clk 0:02:39.3]} 11.
Rab1 {[%clk 0:02:55.6]} 11... Be6 {[%clk 0:02:30.1]} 12. b4 {[%clk 0:02:54.6]}
12... Rc8 {[%clk 0:02:29.9]} 13. b5 {[%clk 0:02:43.1]} 13... c5 {[%clk
0:02:27.8]} 14. Rfc1 {[%clk 0:02:37]} 14... b6 {[%clk 0:02:22.8]} 15. Qa4 {[%clk
0:02:33.8]} 15... Qc7 {[%clk 0:02:03.3]} 16. Ne2 {[%clk 0:02:32.2]} 16... Rfd8
{[%clk 0:01:54.1]} 17. Nf4 {[%clk 0:02:24.8]} 17... Nxf4 {[%clk 0:01:52.7]} 18.
Bxf4 {[%clk 0:02:25.7]} 18... Qb7 {[%clk 0:01:50.4]} 19. h3 {[%clk 0:02:24.4]}
19... h6 {[%clk 0:01:45.2]} 20. Ne5 {[%clk 0:02:22.9]} 20... Bd7 {[%clk
0:01:26.7]} 21. Qd1 {[%clk 0:02:15]} 21... Ne4 {[%clk 0:01:19.4]} 22. Qh5 {[%clk
0:02:08.1]} 22... Be8 {[%clk 0:01:17.2]} 23. Qg4 {[%clk 0:02:02.1]} 23... Bd6
{[%clk 0:01:11.5]} 24. Bxe4 {[%clk 0:01:52.2]} 24... dxe4 {[%clk 0:01:11.2]} 25.
Bxh6 {[%clk 0:01:52.6]} 25... f5 {[%clk 0:01:03.2]} 26. Qg3 {[%clk 0:01:48]}
26... cxd4 {[%clk 0:00:59.4]} 27. exd4 {[%clk 0:01:48.9]} 27... Rxc1+ {[%clk
0:00:40.7]} 28. Rxc1 {[%clk 0:01:48.1]} 28... Kf8 {[%clk 0:00:32.4]} 29. Bf4
{[%clk 0:01:45.2]} 29... Qd5 {[%clk 0:00:26.9]} 30. a4 {[%clk 0:01:37.9]} 30...
Qxd4 {[%clk 0:00:25.4]} 31. Qh4 {[%clk 0:01:38]} 31... Bxe5 {[%clk 0:00:22.2]}
32. Bxe5 {[%clk 0:01:38.9]} 32... Qd5 {[%clk 0:00:05.6]} 33. Qh8+ {[%clk
0:01:37.4]} 33... Qg8 {[%clk 0:00:05.8]} 34. Bxg7+ {[%clk 0:01:37.9]} 34... Kf7
{[%clk 0:00:06]} 35. Qh4 {[%clk 0:01:38.4]} 35... Rd5 {[%clk 0:00:04.9]} 36.
Qf6# {[%clk 0:01:36.3]} 1-0

[Event "*** Titled Tuesday Blitz"]
[Site "Chess.com"]
[Date "2020.04.14"]
[Round "1"]
[White "IMTominho"]
[Black "vaishali2001"]
[Result "1-0"]
[WhiteElo "2844"]
[BlackElo "2444"]
[TimeControl "180+1"]
[EndTime "10:05:50 PDT"]
[Termination "IMTominho won by resignation"]

1. d4 {[%clk 0:03:00.9]} 1... Nf6 {[%clk 0:02:59.5]} 2. c4 {[%clk 0:02:59.5]}
2... g6 {[%clk 0:02:59.8]} 3. Nc3 {[%clk 0:02:59.1]} 3... d5 {[%clk 0:03:00]} 4.
Nf3 {[%clk 0:02:58.3]} 4... Bg7 {[%clk 0:02:59.8]} 5. Bg5 {[%clk 0:02:55.3]}
5... Ne4 {[%clk 0:02:34.1]} 6. cxd5 {[%clk 0:02:55]} 6... Nxg5 {[%clk 0:02:31]}
7. Nxg5 {[%clk 0:02:55.9]} 7... e6 {[%clk 0:02:31.2]} 8. Nf3 {[%clk 0:02:56.1]}
8... exd5 {[%clk 0:02:31.1]} 9. e3 {[%clk 0:02:56.4]} 9... O-O {[%clk
0:02:30.3]} 10. Be2 {[%clk 0:02:56]} 10... c6 {[%clk 0:02:28.4]} 11. O-O {[%clk
0:02:55.8]} 11... Bg4 {[%clk 0:02:28.9]} 12. Rc1 {[%clk 0:02:51]} 12... Bxf3
{[%clk 0:02:28.5]} 13. Bxf3 {[%clk 0:02:50.8]} 13... Nd7 {[%clk 0:02:29.4]} 14.
b4 {[%clk 0:02:43.7]} 14... b5 {[%clk 0:02:23]} 15. e4 {[%clk 0:02:30.1]} 15...
dxe4 {[%clk 0:01:58.5]} 16. Nxe4 {[%clk 0:02:24.1]} 16... Nb6 {[%clk 0:01:58.1]}
17. Rxc6 {[%clk 0:02:14.3]} 17... Qxd4 {[%clk 0:01:53.1]} 18. Qxd4 {[%clk
0:02:13.9]} 18... Bxd4 {[%clk 0:01:54]} 19. Nd6 {[%clk 0:02:14.8]} 19... a6
{[%clk 0:01:42.3]} 20. Rd1 {[%clk 0:02:07.1]} 20... Rfe8 {[%clk 0:01:01.1]} 21.
Nxe8 {[%clk 0:01:50.4]} 21... Rxe8 {[%clk 0:01:02]} 22. g3 {[%clk 0:01:50.5]}
22... Rd8 {[%clk 0:01:02.3]} 23. Rxd4 {[%clk 0:01:49.2]} 23... Rxd4 {[%clk
0:01:02.4]} 24. Rxb6 {[%clk 0:01:49.5]} 24... Rxb4 {[%clk 0:01:03.2]} 25. Rxa6
{[%clk 0:01:49.1]} 25... f5 {[%clk 0:00:57.4]} 26. Ra7 {[%clk 0:01:45.8]} 26...
Rd4 {[%clk 0:00:55]} 27. h4 {[%clk 0:01:44.5]} 27... b4 {[%clk 0:00:54.9]} 28.
Kf1 {[%clk 0:01:43.6]} 28... Rd3 {[%clk 0:00:52.6]} 29. Be2 {[%clk 0:01:42.8]}
29... Rd2 {[%clk 0:00:52.2]} 30. Bc4+ {[%clk 0:01:41.7]} 30... Kh8 {[%clk
0:00:52.1]} 31. h5 {[%clk 0:01:41.6]} 31... gxh5 {[%clk 0:00:51.3]} 32. Rf7
{[%clk 0:01:40.3]} 32... h4 {[%clk 0:00:51.3]} 33. gxh4 {[%clk 0:01:36.2]} 33...
Rd4 {[%clk 0:00:51.8]} 34. Bb3 {[%clk 0:01:35.4]} 34... Rxh4 {[%clk 0:00:52]}
35. Rxf5 {[%clk 0:01:35.9]} 35... Kg7 {[%clk 0:00:50]} 36. Rc5 {[%clk
0:01:35.2]} 36... Kf6 {[%clk 0:00:48]} 37. Rc4 {[%clk 0:01:35]} 37... Rh1+
{[%clk 0:00:48.5]} 38. Kg2 {[%clk 0:01:34.6]} 38... Ra1 {[%clk 0:00:49]} 39.
Rxb4 {[%clk 0:01:34.8]} 39... Kg5 {[%clk 0:00:48.5]} 40. Rb5+ {[%clk 0:01:34.1]}
40... Kf4 {[%clk 0:00:48.1]} 41. Rh5 {[%clk 0:01:33.6]} 41... Rc1 {[%clk
0:00:45.5]} 42. Rh4+ {[%clk 0:01:30.2]} 42... Kg5 {[%clk 0:00:45.2]} 43. Rxh7
{[%clk 0:01:31.1]} 43... Kf4 {[%clk 0:00:44.5]} 44. Rh4+ {[%clk 0:01:29.3]}
44... Kg5 {[%clk 0:00:44.5]} 45. Rc4 {[%clk 0:01:30.2]} 45... Ra1 {[%clk
0:00:44.3]} 46. a4 {[%clk 0:01:29.5]} 46... Kf5 {[%clk 0:00:44.3]} 47. Bc2+
{[%clk 0:01:29.3]} 1-0